bitfinex-derivatives/quotes_BNBF0:USTF0_20250617
["timestamp","ask_amount","ask_price","bid_price","bid_amount"]
[1750194008792,1.02866346,646.73,646.63,1.054]
[1750194008993,1.15292493,646.98,646.63,1.054]
[1750194009194,1.02844482,646.97,646.63,1.054]
[1750194009394,1.02844482,646.96,646.63,1.054]
[1750194009594,1.02844482,646.95,646.63,1.054]
[1750194009793,1.02844482,646.94,646.63,1.054]
[1750194009995,1.02844482,646.93,646.63,1.054]
[1750194010194,1.02844482,646.92,646.63,1.054]
[1750194010398,1.02844482,646.91,646.63,1.054]
[1750194010598,1.15292493,646.94,646.63,1.054]
[1750194010599,1.02844482,646.9,646.63,1.054]
[1750194010791,1.02844482,646.89,646.63,1.054]
[1750194010993,1.02844482,646.88,646.63,1.054]
[1750194011197,1.02844482,646.87,646.63,1.054]
[1750194011395,1.02844482,646.86,646.63,1.054]
[1750194011599,1.02844482,646.85,646.63,1.054]
[1750194011796,1.02844482,646.84,646.63,1.054]
[1750194012096,1.02844482,646.83,646.63,1.054]
[1750194012397,1.02844482,646.82,646.62,0.939]
[1750194012703,1.02844482,646.81,646.62,0.939]
[1750194012903,1.02844482,646.8,646.62,0.939]
[1750194013101,1.02844482,646.79,646.62,0.939]
[1750194013298,1.02844482,646.78,646.62,0.939]
[1750194013503,1.02844482,646.77,646.62,0.939]
[1750194013701,1.02844482,646.76,646.62,0.939]
[1750194013902,1.15292493,646.93,646.62,0.939]
[1750194013903,1.02844482,646.75,646.62,0.939]
[1750194014201,1.02844482,646.74,646.62,0.939]
[1750194014500,1.02844482,646.73,646.62,0.939]
[1750194014801,1.02844482,646.72,646.62,0.939]
[1750194015105,1.02844482,646.71,646.62,0.939]
[1750194015404,1.02844482,646.7,646.62,0.939]
[1750194015604,1.02844482,646.69,646.62,0.939]
[1750194015804,1.02844482,646.68,646.62,0.939]
[1750194016005,1.15292493,646.93,646.62,0.939]
[1750194016199,1.02833008,646.92,646.62,0.939]
[1750194016404,1.02833008,646.91,646.62,0.939]
[1750194016704,1.02833008,646.9,646.62,0.939]
[1750194016900,1.53744748,647.06,646.62,0.939]
[1750194016901,1.02833008,646.89,646.62,0.939]
[1750194017101,1.02833008,646.88,646.62,0.939]
[1750194017305,1.02833008,646.87,646.62,0.939]
[1750194017501,1.02833008,646.86,646.62,0.939]
[1750194017705,1.02833008,646.85,646.62,0.939]
[1750194017903,1.02833008,646.84,646.62,0.939]
[1750194018107,1.02833008,646.83,646.62,0.939]
[1750194018402,1.02833008,646.82,646.62,0.939]
[1750194018606,1.02833008,646.81,646.62,0.939]
[1750194018906,1.02833008,646.8,646.62,0.939]
[1750194019201,1.02833008,646.79,646.62,0.939]
[1750194019408,1.02833008,646.78,646.62,0.939]
[1750194019607,1.02833008,646.77,646.62,0.939]
[1750194019806,1.02833008,646.76,646.62,0.939]
[1750194020001,1.02833008,646.75,646.62,0.939]
[1750194020204,1.02833008,646.74,646.62,0.939]
[1750194020405,1.02833008,646.73,646.62,0.939]
[1750194020605,1.02833008,646.72,646.62,0.939]
[1750194020803,1.02833008,646.71,646.62,0.939]
[1750194021004,1.02833008,646.7,646.62,0.939]
[1750194021305,1.02833008,646.69,646.62,0.939]
[1750194021505,1.02833008,646.68,646.62,0.939]
[1750194021703,1.02833008,646.67,646.62,0.939]
[1750194021903,1.15292493,646.91,646.62,0.939]
[1750194022106,1.03722282,646.9,646.62,0.939]
[1750194022304,1.03722282,646.89,646.62,0.939]
[1750194022505,1.03722282,646.88,646.62,0.939]
[1750194022806,1.03722282,646.87,646.62,0.939]
[1750194023006,1.03722282,646.86,646.62,0.939]
[1750194023205,1.03722282,646.85,646.62,0.939]
[1750194023507,1.03722282,646.84,646.62,0.939]
[1750194023808,1.03722282,646.83,646.62,0.939]
[1750194024004,1.03722282,646.82,646.62,0.939]
[1750194024209,1.03722282,646.81,646.62,0.939]
[1750194024409,1.03722282,646.8,646.62,0.939]
[1750194024703,1.03722282,646.79,646.62,0.939]
[1750194024908,1.03722282,646.78,646.62,0.939]
[1750194025108,1.03722282,646.77,646.62,0.939]
[1750194025304,1.03722282,646.76,646.62,0.939]
[1750194025504,1.03722282,646.75,646.62,0.939]
[1750194025706,1.03722282,646.74,646.62,0.939]
[1750194025907,1.03722282,646.73,646.62,0.939]
[1750194026204,1.03722282,646.72,646.62,0.939]
[1750194026405,1.03722282,646.71,646.62,0.939]
[1750194026605,1.03722282,646.7,646.62,0.939]
[1750194026809,1.03722282,646.69,646.62,0.939]
[1750194027007,1.03722282,646.68,646.62,0.939]
[1750194027208,1.15292493,646.9,646.62,0.939]
[1750194027408,2.19025954,646.89,646.62,0.939]
[1750194027607,1.03733461,646.88,646.62,0.939]
[1750194027808,1.03733461,646.87,646.62,0.939]
[1750194028010,1.03733461,646.86,646.62,0.939]
[1750194028309,1.03733461,646.85,646.62,0.939]
[1750194028511,1.03733461,646.84,646.62,0.939]
[1750194028709,1.03733461,646.83,646.62,0.939]
[1750194029009,1.03733461,646.82,646.62,0.939]
[1750194029205,1.03733461,646.81,646.62,0.939]
[1750194029409,1.03733461,646.8,646.62,0.939]
[1750194029605,1.03733461,646.79,646.62,0.939]
[1750194029907,1.03733461,646.78,646.62,0.939]
[1750194030108,1.03733461,646.77,646.62,0.939]
[1750194030311,1.03733461,646.76,646.62,0.939]
[1750194030508,1.03733461,646.75,646.62,0.939]
[1750194030710,1.03733461,646.74,646.62,0.939]
[1750194031008,1.03733461,646.73,646.62,0.939]
[1750194031209,1.03733461,646.72,646.62,0.939]
[1750194031412,1.03733461,646.71,646.62,0.939]
[1750194031612,1.03733461,646.7,646.62,0.939]
[1750194031810,1.03733461,646.69,646.62,0.939]
[1750194032014,1.03733461,646.68,646.62,0.939]
[1750194032211,1.03733461,646.67,646.62,0.939]
[1750194032411,1.03733461,646.66,646.62,0.939]
[1750194032619,1.03733461,646.65,646.62,0.939]
[1750194032812,1.15292493,646.8,646.62,0.939]
[1750194032813,1.03733461,646.64,646.62,0.939]
[1750194033015,1.03733461,646.63,646.62,0.939]
[1750194042522,1.03733461,646.63,646.21,0.26908846]
[1750194042718,1.15292493,646.78,646.21,0.26908846]
[1750194042719,1.03733461,646.62,646.21,0.26908846]
[1750194043023,1.03733461,646.61,646.21,0.26908846]
[1750194043219,1.03733461,646.6,646.21,0.26908846]
[1750194043519,1.15292493,646.78,646.21,0.26908846]
[1750194043520,1.15292493,646.8,646.21,0.26908846]
[1750194043724,1.03621498,646.79,646.21,0.26908846]
[1750194043925,1.03621498,646.78,646.21,0.26908846]
[1750194044123,1.03621498,646.77,646.21,0.26908846]
[1750194044423,1.03621498,646.76,646.21,0.26908846]
[1750194044619,1.03621498,646.75,646.21,0.26908846]
[1750194044923,1.03621498,646.74,646.21,0.26908846]
[1750194045120,1.03621498,646.73,646.21,0.26908846]
[1750194045324,1.03621498,646.72,646.22,1.339]
[1750194045624,1.03621498,646.71,646.22,1.339]
[1750194045924,1.03621498,646.7,646.22,1.339]
[1750194046223,1.03621498,646.69,646.22,1.339]
[1750194046423,1.03621498,646.68,646.22,1.339]
[1750194046624,1.03621498,646.67,646.22,1.339]
[1750194046819,1.03621498,646.66,646.22,1.339]
[1750194047025,1.03621498,646.65,646.22,1.339]
[1750194047221,1.03621498,646.64,646.22,1.339]
[1750194047522,1.03621498,646.63,646.22,1.339]
[1750194047726,1.03621498,646.62,646.22,1.339]
[1750194047923,1.15292493,646.8,646.22,1.339]
[1750194048123,1.0359993,646.79,646.22,1.339]
[1750194048323,1.0359993,646.78,646.22,1.339]
[1750194048524,1.0359993,646.77,646.22,1.339]
[1750194048724,1.0359993,646.76,646.22,1.339]
[1750194048927,1.0359993,646.75,646.22,1.339]
[1750194049127,1.0359993,646.74,646.22,1.339]
[1750194049327,1.0359993,646.73,646.22,1.339]
[1750194049624,1.0359993,646.72,646.22,1.339]
[1750194049824,1.0359993,646.71,646.22,1.339]
[1750194050126,1.0359993,646.7,646.22,1.339]
[1750194050327,1.0359993,646.69,646.22,1.339]
[1750194050526,1.0359993,646.68,646.22,1.339]
[1750194050723,1.0359993,646.67,646.22,1.339]
[1750194051026,1.0359993,646.66,646.22,1.339]
[1750194051225,1.0359993,646.65,646.22,1.339]
[1750194051426,1.0359993,646.64,646.22,1.339]
[1750194051626,1.0359993,646.63,646.22,1.339]
[1750194051822,1.0359993,646.62,646.22,1.339]
[1750194052024,1.0359993,646.61,646.22,1.339]
[1750194052224,1.15292493,646.79,646.22,1.339]
[1750194052426,1.0410129,646.78,646.22,1.339]
[1750194052625,1.0410129,646.77,646.22,1.339]
[1750194052827,1.0410129,646.76,646.22,1.339]
[1750194053028,1.0410129,646.75,646.22,1.339]
[1750194053324,1.0410129,646.74,646.22,1.339]
[1750194053530,1.0410129,646.73,646.22,1.339]
[1750194053724,1.0410129,646.72,646.22,1.339]
[1750194053925,1.0410129,646.71,646.22,1.339]
[1750194054129,1.0410129,646.7,646.22,1.339]
[1750194054326,1.0410129,646.69,646.22,1.339]
[1750194054629,1.0410129,646.68,646.22,1.339]
[1750194054830,1.0410129,646.67,646.22,1.339]
[1750194055030,1.0410129,646.66,646.22,1.339]
[1750194055232,1.0410129,646.65,646.22,1.339]
[1750194055532,1.0410129,646.64,646.22,1.339]
[1750194055732,1.0410129,646.63,646.22,1.339]
[1750194056027,1.0410129,646.62,646.22,1.339]
[1750194056232,1.0410129,646.61,646.22,1.339]
[1750194056429,1.15292493,646.79,646.22,1.339]
[1750194056727,1.04106756,646.78,646.22,1.339]
[1750194056930,1.04106756,646.77,646.22,1.339]
[1750194057129,1.04106756,646.76,646.22,1.339]
[1750194057434,1.04106756,646.75,646.22,1.339]
[1750194057630,1.04106756,646.74,646.22,1.339]
[1750194057830,1.15292493,646.79,646.22,1.339]
[1750194057831,1.04106756,646.73,646.22,1.339]
[1750194058029,1.04106756,646.72,646.22,1.339]
[1750194058228,1.04106756,646.71,646.22,1.339]
[1750194058429,1.04106756,646.7,646.22,1.339]
[1750194058629,1.04106756,646.69,646.22,1.339]
[1750194058830,1.04106756,646.68,646.22,1.339]
[1750194059030,1.04106756,646.67,646.22,1.339]
[1750194059233,1.04106756,646.66,646.22,1.339]
[1750194059430,1.04106756,646.65,646.22,1.339]
[1750194059628,1.04106756,646.64,646.22,1.339]
[1750194059830,1.04106756,646.63,646.22,1.339]
[1750194060032,1.04106756,646.62,646.22,1.339]
[1750194060235,1.04106756,646.61,646.22,1.339]
[1750194060437,1.04106756,646.6,646.22,1.339]
[1750194060633,1.15292493,646.79,646.22,1.339]
[1750194060837,1.041337,646.78,646.22,1.339]
[1750194061034,1.041337,646.77,646.22,1.339]
[1750194061333,1.041337,646.76,646.22,1.339]
[1750194061633,1.041337,646.75,646.22,1.339]
[1750194061833,1.041337,646.74,646.22,1.339]
[1750194062038,1.041337,646.73,646.22,1.339]
[1750194062235,1.041337,646.72,646.22,1.339]
[1750194062537,1.041337,646.71,646.23,1.434]
[1750194062738,1.041337,646.7,646.23,1.434]
[1750194063037,1.041337,646.69,646.23,1.434]
[1750194063333,1.15292493,646.92,646.23,1.434]
[1750194063539,1.04221427,646.91,646.23,1.434]
[1750194063736,1.04221427,646.9,646.23,1.434]
[1750194063938,1.04221427,646.89,646.23,1.434]
[1750194064138,1.04221427,646.88,646.23,1.434]
[1750194064336,1.04221427,646.87,646.23,1.434]
[1750194064540,1.04221427,646.86,646.23,1.434]
[1750194064740,1.04221427,646.85,646.23,1.434]
[1750194064938,1.04221427,646.84,646.23,1.434]
[1750194065141,1.04221427,646.83,646.23,1.434]
[1750194065339,1.04221427,646.82,646.23,1.434]
[1750194065637,1.04221427,646.81,646.23,1.434]
[1750194065838,1.04221427,646.8,646.23,1.434]
[1750194066039,1.04221427,646.79,646.23,1.434]
[1750194066241,1.04221427,646.78,646.23,1.434]
[1750194066538,1.04221427,646.77,646.23,1.434]
[1750194066742,1.04221427,646.76,646.23,1.434]
[1750194066941,1.04221427,646.75,646.23,1.434]
[1750194067142,1.04221427,646.74,646.23,1.434]
[1750194067338,1.04221427,646.73,646.23,1.434]
[1750194067546,1.04221427,646.72,646.23,1.434]
[1750194067743,1.04221427,646.71,646.23,1.434]
[1750194068039,1.04221427,646.7,646.23,1.434]
[1750194068243,1.04221427,646.69,646.23,1.434]
[1750194068444,1.04221427,646.68,646.23,1.434]
[1750194068642,1.15292493,646.96,646.23,1.434]
[1750194068841,1.04297024,646.95,646.23,1.434]
[1750194069040,1.04297024,646.94,646.23,1.434]
[1750194069243,1.04297024,646.93,646.23,1.434]
[1750194069443,1.04297024,646.92,646.23,1.434]
[1750194069640,1.04297024,646.91,646.23,1.434]
[1750194069843,1.04297024,646.9,646.23,1.434]
[1750194070047,1.04297024,646.89,646.23,1.434]
[1750194070248,1.04297024,646.88,646.23,1.434]
[1750194070447,1.04297024,646.87,646.23,1.434]
[1750194070645,1.04297024,646.86,646.23,1.434]
[1750194070845,1.04297024,646.85,646.23,1.434]
[1750194071044,1.04297024,646.84,646.23,1.434]
[1750194071248,1.04297024,646.83,646.23,1.434]
[1750194071549,1.04297024,646.82,646.23,1.434]
[1750194071748,1.04297024,646.81,646.23,1.434]
[1750194071948,1.04297024,646.8,646.23,1.434]
[1750194072145,1.15292493,646.96,646.23,1.434]
[1750194072146,1.04297024,646.79,646.23,1.434]
[1750194072348,1.04297024,646.78,646.23,1.434]
[1750194072546,1.04297024,646.77,646.23,1.434]
[1750194072851,1.04297024,646.76,646.23,1.434]
[1750194073048,1.04297024,646.75,646.23,1.434]
[1750194073246,1.04297024,646.74,646.23,1.434]
[1750194073446,1.04297024,646.73,646.23,1.434]
[1750194073744,1.04297024,646.72,646.23,1.434]
[1750194073947,1.04297024,646.71,646.23,1.434]
[1750194074148,1.04297024,646.7,646.23,1.434]
[1750194074345,1.15292493,646.92,646.23,1.434]
[1750194074547,1.04320922,646.91,646.23,1.434]
[1750194074850,1.04320922,646.9,646.23,1.434]
[1750194075050,1.04320922,646.89,646.23,1.434]
[1750194075250,1.04320922,646.88,646.23,1.434]
[1750194075448,1.04320922,646.87,646.23,1.434]
[1750194075648,1.04320922,646.86,646.23,1.434]
[1750194075847,1.04320922,646.85,646.23,1.434]
[1750194076053,1.04320922,646.84,646.23,1.434]
[1750194076348,1.04320922,646.83,646.23,1.434]
[1750194076552,1.04320922,646.82,646.22,1.339]
[1750194076752,1.04320922,646.81,646.22,1.339]
[1750194076950,1.04320922,646.8,646.22,1.339]
[1750194077155,1.04320922,646.79,646.22,1.339]
[1750194077350,1.04320922,646.78,646.22,1.339]
[1750194077655,1.04320922,646.77,646.22,1.339]
[1750194077850,1.04320922,646.76,646.22,1.339]
[1750194078055,1.04320922,646.75,646.22,1.339]
[1750194078250,1.04320922,646.74,646.22,1.339]
[1750194078452,1.04320922,646.73,646.22,1.339]
[1750194078752,1.04320922,646.72,646.22,1.339]
[1750194078951,1.04320922,646.71,646.22,1.339]
[1750194079152,1.04320922,646.7,646.22,1.339]
[1750194079353,1.15292493,646.93,646.22,1.339]
[1750194079553,1.04357408,646.92,646.22,1.339]
[1750194079756,2.19649901,646.91,646.22,1.339]
[1750194080056,1.04357408,646.9,646.23,1.434]
[1750194080260,1.04357408,646.89,646.23,1.434]
[1750194080460,1.04357408,646.88,646.23,1.434]
[1750194080762,1.04357408,646.87,646.23,1.434]
[1750194080958,1.04357408,646.86,646.23,1.434]
[1750194081258,1.04357408,646.85,646.23,1.434]
[1750194081456,1.04357408,646.84,646.23,1.434]
[1750194081662,1.04357408,646.83,646.23,1.434]
[1750194081857,1.04357408,646.82,646.23,1.434]
[1750194082057,1.04357408,646.81,646.23,1.434]
[1750194082360,1.04357408,646.8,646.23,1.434]
[1750194082559,1.15292493,646.91,646.23,1.434]
[1750194082560,1.04357408,646.79,646.23,1.434]
[1750194082757,1.04357408,646.78,646.23,1.434]
[1750194082960,1.04357408,646.77,646.23,1.434]
[1750194083160,1.04357408,646.76,646.23,1.434]
[1750194083361,1.04357408,646.75,646.23,1.434]
[1750194083561,1.04357408,646.74,646.24,1.357]
[1750194083761,1.04357408,646.73,646.24,1.357]
[1750194083958,1.04357408,646.72,646.24,1.357]
[1750194084158,1.04357408,646.71,646.24,1.357]
[1750194084461,1.15292493,646.92,646.24,1.357]
[1750194084658,1.04267895,646.91,646.24,1.357]
[1750194084961,1.04267895,646.9,646.24,1.357]
[1750194085161,1.04267895,646.89,646.24,1.357]
[1750194085362,1.04267895,646.88,646.24,1.357]
[1750194085562,1.04267895,646.87,646.24,1.357]
[1750194085861,1.04267895,646.86,646.24,1.357]
[1750194086060,1.04267895,646.85,646.24,1.357]
[1750194086260,1.04267895,646.84,646.24,1.357]
[1750194086461,1.04267895,646.83,646.24,1.357]
[1750194086660,1.04267895,646.82,646.24,1.357]
[1750194086860,1.04267895,646.81,646.24,1.357]
[1750194087058,1.04267895,646.8,646.24,1.357]
[1750194087261,1.04267895,646.79,646.24,1.357]
[1750194087561,1.04267895,646.78,646.24,1.357]
[1750194087864,1.04267895,646.77,646.24,1.357]
[1750194088061,1.04267895,646.76,646.24,1.357]
[1750194088264,1.04267895,646.75,646.24,1.357]
[1750194088461,1.04267895,646.74,646.24,1.357]
[1750194088662,1.04267895,646.73,646.24,1.357]
[1750194088862,1.04267895,646.72,646.24,1.357]
[1750194089061,1.15292493,646.91,646.24,1.357]
[1750194089263,1.04262423,646.9,646.24,1.357]
[1750194089462,1.04262423,646.89,646.24,1.357]
[1750194089665,1.04262423,646.88,646.24,1.357]
[1750194089865,1.04262423,646.87,646.24,1.357]
[1750194090062,1.04262423,646.86,646.24,1.357]
[1750194090361,1.04262423,646.85,646.24,1.357]
[1750194090663,1.04262423,646.84,646.24,1.357]
[1750194090861,1.04262423,646.83,646.24,1.357]
[1750194091065,1.04262423,646.82,646.24,1.357]
[1750194091265,1.04262423,646.81,646.24,1.357]
[1750194091462,1.04262423,646.8,646.24,1.357]
[1750194091666,1.04262423,646.79,646.24,1.357]
[1750194091964,1.04262423,646.78,646.24,1.357]
[1750194092162,1.04262423,646.77,646.24,1.357]
[1750194092366,1.04262423,646.76,646.24,1.357]
[1750194092563,1.04262423,646.75,646.24,1.357]
[1750194092760,1.04262423,646.74,646.24,1.357]
[1750194092962,1.04262423,646.73,646.24,1.357]
[1750194093266,1.04262423,646.72,646.24,1.357]
[1750194093461,1.15292493,646.92,646.24,1.357]
[1750194093665,1.04231202,646.91,646.24,1.357]
[1750194093867,1.04231202,646.9,646.24,1.357]
[1750194094067,1.04231202,646.89,646.24,1.357]
[1750194094268,1.04231202,646.88,646.24,1.357]
[1750194094464,1.04231202,646.87,646.24,1.357]
[1750194094769,1.04231202,646.86,646.24,1.357]
[1750194094969,1.04231202,646.85,646.24,1.357]
[1750194095165,1.04231202,646.84,646.24,1.357]
[1750194095469,1.04231202,646.83,646.24,1.357]
[1750194095669,1.04231202,646.82,646.24,1.357]
[1750194095869,1.04231202,646.81,646.24,1.357]
[1750194096070,1.04231202,646.8,646.24,1.357]
[1750194096269,1.04231202,646.79,646.24,1.357]
[1750194096469,1.04231202,646.78,646.22,1.339]
[1750194096670,1.04231202,646.77,646.22,1.339]
[1750194096871,1.04231202,646.76,646.22,1.339]
[1750194097169,1.04273032,646.75,646.23,0.30948733]
[1750194097372,1.15292493,647.03,646.23,0.30948733]
[1750194097571,1.04275596,647.02,646.23,0.30948733]
[1750194097768,1.04275596,647.01,646.23,0.30948733]
[1750194097973,1.04275596,647.0,646.23,0.30948733]
[1750194098170,1.04275596,646.99,646.23,0.30948733]
[1750194098470,1.04275596,646.98,646.23,0.30948733]
[1750194098674,1.04275596,646.97,646.23,0.30948733]
[1750194098875,1.04275596,646.96,646.23,0.30948733]
[1750194099076,1.04275596,646.95,646.24,1.209]
[1750194099278,1.04275596,646.94,646.25,0.30947775]
[1750194099577,1.04275596,646.93,646.25,0.30947775]
[1750194099873,1.04275596,646.92,646.25,0.30947775]
[1750194100173,1.04275596,646.91,646.25,0.30947775]
[1750194100377,1.04275596,646.9,646.25,0.30947775]
[1750194100577,1.04275596,646.89,646.25,0.30947775]
[1750194100773,1.04275596,646.88,646.25,0.30947775]
[1750194100979,1.04275596,646.87,646.25,0.30947775]
[1750194101280,1.15292493,647.21,646.25,0.30947775]
[1750194101577,2.19575955,647.2,646.25,0.30947775]
[1750194101780,1.04283462,647.19,646.25,0.30947775]
[1750194101974,1.04283462,647.18,646.25,0.30947775]
[1750194102273,1.04283462,647.17,646.25,0.30947775]
[1750194102474,1.04283462,647.16,646.25,0.30947775]
[1750194102674,1.04283462,647.15,646.25,0.30947775]
[1750194102874,1.04283462,647.14,646.26,1.353]
[1750194103080,1.04283462,647.13,646.27,0.30946817]
[1750194103274,1.15292493,647.21,646.27,0.30946817]
[1750194103275,1.04283462,647.12,646.27,0.30946817]
[1750194103578,1.04283462,647.11,646.27,0.30946817]
[1750194103773,1.04283462,647.1,646.27,0.30946817]
[1750194103978,1.04283462,647.09,646.27,0.30946817]
[1750194104277,1.04283462,647.08,646.27,0.30946817]
[1750194104473,1.04283462,647.07,646.27,0.30946817]
[1750194104674,1.04283462,647.06,646.27,0.30946817]
[1750194104875,1.04283462,647.05,646.27,0.30946817]
[1750194105177,1.04283462,647.04,646.27,0.30946817]
[1750194105374,1.04283462,647.03,646.27,0.30946817]
[1750194105576,1.04283462,647.02,646.27,0.30946817]
[1750194105773,1.04283462,647.01,646.27,0.30946817]
[1750194106073,1.04283462,647.0,646.27,0.30946817]
[1750194106279,1.04283462,646.99,646.27,0.30946817]
[1750194106579,1.04283462,646.98,646.27,0.30946817]
[1750194106778,1.04283462,646.97,646.27,0.30946817]
[1750194106974,1.04139796,646.96,646.27,0.30946817]
[1750194107175,1.15292493,647.25,646.27,0.30946817]
[1750194107378,1.04141684,647.24,646.27,0.30946817]
[1750194107679,1.04141684,647.23,646.27,0.30946817]
[1750194107878,1.04141684,647.22,646.27,0.30946817]
[1750194108076,1.04141684,647.21,646.27,0.30946817]
[1750194108279,1.04141684,647.2,646.27,0.30946817]
[1750194108476,1.04141684,647.19,646.27,0.30946817]
[1750194108681,1.04141684,647.18,646.27,0.30946817]
[1750194108879,1.04141684,647.17,646.27,0.30946817]
[1750194109077,1.04141684,647.16,646.27,0.30946817]
[1750194109277,1.04141684,647.15,646.27,0.30946817]
[1750194109479,1.04141684,647.14,646.27,0.30946817]
[1750194109678,1.04141684,647.13,646.27,0.30946817]
[1750194109882,1.04141684,647.12,646.27,0.30946817]
[1750194110078,1.04141684,647.11,646.27,0.30946817]
[1750194110279,1.04141684,647.1,646.27,0.30946817]
[1750194110483,1.04141684,647.09,646.27,0.30946817]
[1750194110684,1.04141684,647.08,646.27,0.30946817]
[1750194110880,1.04141684,647.07,646.27,0.30946817]
[1750194111181,1.04141684,647.06,646.27,0.30946817]
[1750194111384,1.04141684,647.05,646.27,0.30946817]
[1750194111681,1.04141684,647.04,646.27,0.30946817]
[1750194111884,1.04141684,647.03,646.27,0.30946817]
[1750194112085,1.04141684,647.02,646.27,0.30946817]
[1750194112284,1.04141684,647.01,646.27,0.30946817]
[1750194112485,1.04141684,647.0,646.27,0.30946817]
[1750194112683,1.04141684,646.99,646.27,0.30946817]
[1750194112882,1.04141684,646.98,646.27,0.30946817]
[1750194113185,1.04141684,646.97,646.27,0.30946817]
[1750194113384,1.04141684,646.96,646.27,0.30946817]
[1750194113584,1.15292493,647.25,646.27,0.30946817]
[1750194113785,1.03775408,647.24,646.27,0.30946817]
[1750194113983,1.03775408,647.23,646.27,0.30946817]
[1750194114282,1.03775408,647.22,646.27,0.30946817]
[1750194114482,1.03775408,647.21,646.27,0.30946817]
[1750194114682,1.03775408,647.2,646.27,0.30946817]
[1750194114881,1.03775408,647.19,646.27,0.30946817]
[1750194115081,1.03775408,647.18,646.27,0.30946817]
[1750194115284,1.03775408,647.17,646.27,0.30946817]
[1750194115584,1.03775408,647.16,646.27,0.30946817]
[1750194115781,1.03775408,647.15,646.27,0.30946817]
[1750194115985,1.03775408,647.14,646.27,0.30946817]
[1750194116184,1.03775408,647.13,646.27,0.30946817]
[1750194116384,1.03775408,647.12,646.27,0.30946817]
[1750194116585,1.15292493,647.21,646.27,0.30946817]
[1750194116586,1.03775408,647.11,646.27,0.30946817]
[1750194116786,1.03775408,647.1,646.27,0.30946817]
[1750194117084,1.03775408,647.09,646.27,0.30946817]
[1750194117285,1.03775408,647.08,646.27,0.30946817]
[1750194117484,1.03775408,647.07,646.27,0.30946817]
[1750194117683,1.03775408,647.06,646.27,0.30946817]
[1750194117883,1.03775408,647.05,646.27,0.30946817]
[1750194118085,1.03775408,647.04,646.27,0.30946817]
[1750194118385,1.03775408,647.03,646.27,0.30946817]
[1750194118587,1.03775408,647.02,646.27,0.30946817]
[1750194118787,1.03775408,647.01,646.27,0.30946817]
[1750194118983,1.03775408,647.0,646.27,0.30946817]
[1750194119187,1.03775408,646.99,646.27,0.30946817]
[1750194119385,1.03775408,646.98,646.27,0.30946817]
[1750194119586,1.03775408,646.97,646.28,1.286]
[1750194119889,1.03775408,646.96,646.29,0.3094586]
[1750194120087,1.03775408,646.95,646.29,0.3094586]
[1750194120284,1.03775408,646.94,646.29,0.3094586]
[1750194120489,1.03775408,646.93,646.29,0.3094586]
[1750194120689,1.03775408,646.92,646.29,0.3094586]
[1750194120990,1.03775408,646.91,646.29,0.3094586]
[1750194121188,1.03775408,646.9,646.29,0.3094586]
[1750194121391,1.03775408,646.89,646.29,0.3094586]
[1750194121591,1.15292493,647.17,646.29,0.3094586]
[1750194121592,1.03775408,646.88,646.29,0.3094586]
[1750194121792,1.03775408,646.87,646.29,0.3094586]
[1750194121992,1.03775408,646.86,646.29,0.3094586]
[1750194122193,1.03775408,646.85,646.29,0.3094586]
[1750194122393,1.03775408,646.84,646.29,0.3094586]
[1750194122590,1.03775408,646.83,646.29,0.3094586]
[1750194122793,1.03775408,646.82,646.29,0.3094586]
[1750194123093,1.03775408,646.81,646.29,0.3094586]
[1750194123395,1.03775408,646.8,646.29,0.3094586]
[1750194123591,1.15292493,647.08,646.29,0.3094586]
[1750194123790,1.03798905,647.07,646.29,0.3094586]
[1750194123993,1.03798905,647.06,646.29,0.3094586]
[1750194124194,1.03798905,647.05,646.29,0.3094586]
[1750194124391,1.03798905,647.04,646.29,0.3094586]
[1750194124691,1.03798905,647.03,646.29,0.3094586]
[1750194124991,1.03798905,647.02,646.29,0.3094586]
[1750194125189,1.03798905,647.01,646.29,0.3094586]